{"text_format":"3","workbook":"xlsx","n_sheets":2,"sheets":["Starta","Kundlönsamhet"],"not_rendered":{"charts":1},"read":"whole","date_system":"1900"}

{"sheet":"Starta","index":0,"n_rows":7,"n_cols":2,"rows_kept":7}
[null,"OM DEN HÄR MALLEN"]
[null,"Använd den här kundlönsamhetsanalys och spåra kundaktivitet, försäljningskostnader och övriga kostnader."]
[null,"Fyll i information som företagets namn och datum, och fyll i information i tabellerna."]
[null,"Värden i celler som innehåller formler och tabellen Sammanfattande statistik beräknas automatiskt och diagrammet uppdateras."]
[null,"Obs!  "]
[null,"Ytterligare anvisningar finns i kolumn A i kalkylbladet KUNDLÖNSAMHET. Den här texten har avsiktligt dolts. Om du vill ta bort texten markerar du kolumn A och väljer sedan TA BORT. Om du vill visa texten markerar du kolumn A och ändrar sedan teckenfärg."]
[null,"Om du vill läsa mer om tabeller i det här kalkylbladet trycker du på SKIFT och sedan på F10 i en tabell, väljer alternativet TABELL och väljer sedan ALTERNATIV TEXT."]

{"sheet":"Kundlönsamhet","index":1,"n_rows":37,"n_cols":6,"rows_kept":37,"merged":[[36,1,36,5]]}
["Skapa en kundlönsamhetsanalys i det här kalkylbladet. Anvisningar för hur du använder det här kalkylbladet finns i cellerna i den här kolumnen. Använd nedåtpil för att komma igång."]
["Ange företagets namn i cellen till höger.","Företagets namn"]
["Kalkylbladets rubrik finns i cellen till höger.","Kundlönsamhetsanalys"]
["Ange datum i cellen till höger.","Datum"]
["Tips finns i cellen till höger.","Grå celler beräknas automatiskt. Du behöver inte skriva in något i dem."]
["Ange information i tabellen Kundaktivitet som börjar i cellen till höger. Fler anvisningar finns i cell A12.","Kundaktivitet:","Segmentnamn 1","Segmentnamn 2","Segmentnamn 3","Totalt"]
[null,"Antal aktiva kunder – i början av perioden",5,8,8,{"$f":"SUM(C7:E7)","v":21}]
[null,"Antal nya kunder",2,4,4,{"$f":"SUM(C8:E8)","v":10}]
[null,"Antal förlorade/avslutade kunder",{"v":-1,"d":"-1 "},{"v":-2,"d":"-2 "},{"v":-2,"d":"-2 "},{"$f":"SUM(C9:E9)","v":{"v":-5,"d":"-5 "}}]
[null,"Antal aktiva kunder – i slutet av perioden",{"$f":"SUBTOTAL(109,Kundaktivitet[Segmentnamn 1])","v":6},{"$f":"SUBTOTAL(109,Kundaktivitet[Segmentnamn 2])","v":10},{"$f":"SUBTOTAL(109,Kundaktivitet[Segmentnamn 3])","v":10},{"$f":"SUBTOTAL(109,Kundaktivitet[Totalt])","v":26}]
[]
["Ange information i tabellen Lönsamhetsanalys som börjar i cellen till höger. Fler anvisningar finns i cell A16.","Lönsamhetsanalys:","Segmentnamn 1","Segmentnamn 2","Segmentnamn 3","Totalt"]
[null,"Intäkter per segment",{"v":1500000,"d":"1,500,000.00 kr"},{"v":1800000,"d":"1,800,000.00 kr"},{"v":2500000,"d":"2,500,000.00 kr"},{"$f":"SUM(Lönsamhetsanalys[[#This Row],[Segmentnamn 1]:[Segmentnamn 3]])","v":{"v":5800000,"d":"5,800,000.00 kr"}}]
[null,"Viktning",{"$f":"+C13/$F$13","v":{"v":0.25862068965517243,"d":"26%"}},{"$f":"+D13/$F$13","v":{"v":0.3103448275862069,"d":"31%"}},{"$f":"+E13/$F$13","v":{"v":0.43103448275862066,"d":"43%"}},{"$f":"SUM(Lönsamhetsanalys[[#This Row],[Segmentnamn 1]:[Segmentnamn 3]])","v":{"v":1,"d":"100%"}}]
[]
["Ange information i tabellen Försäljningskostnader som börjar i cellen till höger. Fler anvisningar finns i cell A23.","Försäljningskostnader:","Segmentnamn 1","Segmentnamn 2","Segmentnamn 3","Totalt"]
[null,"Löpande kostnader för tjänster och support",{"v":1000000,"d":"1,000,000.00 kr"},{"v":1400000,"d":"1,400,000.00 kr"},{"v":1400000,"d":"1,400,000.00 kr"},{"$f":"SUM(C17:E17)","v":{"v":3800000,"d":"3,800,000.00 kr"}}]
[null,"Övriga direkta kundkostnader",{"v":200000,"d":"200,000.00 kr"},{"v":100000,"d":"100,000.00 kr"},{"v":100000,"d":"100,000.00 kr"},{"$f":"SUM(C18:E18)","v":{"v":400000,"d":"400,000.00 kr"}}]
[null,"Total försäljningskostnad",{"$f":"SUM(C17:C18)","v":{"v":1200000,"d":"1,200,000.00 kr"}},{"$f":"SUM(D17:D18)","v":{"v":1500000,"d":"1,500,000.00 kr"}},{"$f":"SUM(E17:E18)","v":{"v":1500000,"d":"1,500,000.00 kr"}},{"$f":"SUM(F17:F18)","v":{"v":4200000,"d":"4,200,000.00 kr"}}]
[null,"Bruttomarginal",{"$f":"+C13-C19","v":{"v":300000,"d":"300,000.00 kr"}},{"$f":"+D13-D19","v":{"v":300000,"d":"300,000.00 kr"}},{"$f":"+E13-E19","v":{"v":1000000,"d":"1,000,000.00 kr"}},{"$f":"+F13-F19","v":{"v":1600000,"d":"1,600,000.00 kr"}}]
[null,"Viktning",{"$f":"MAX(0, MIN(1,C20/$F$20))","v":{"v":0.1875,"d":"19%"}},{"$f":"MAX(0, MIN(1,D20/$F$20))","v":{"v":0.1875,"d":"19%"}},{"$f":"MAX(0, MIN(1,E20/$F$20))","v":{"v":0.625,"d":"63%"}},{"$f":"SUM(C21:E21)","v":{"v":1,"d":"100%"}}]
[]
["Ange information i tabellen Övriga kostnader som börjar i cellen till höger. Fler anvisningar finns i cell A31.","Övriga kostnader:","Segmentnamn 1","Segmentnamn 2","Segmentnamn 3","Totalt"]
[null,"Kundförvärv",{"v":105000,"d":"105,000.00 kr"},{"v":120000,"d":"120,000.00 kr"},{"v":235000,"d":"235,000.00 kr"},{"$f":"SUM(ÖvrigaKostnader[[#This Row],[Segmentnamn 1]:[Segmentnamn 3]])","v":{"v":460000,"d":"460,000.00 kr"}}]
[null,"Marknadsföring för kunder",{"v":150000,"d":"150,000.00 kr"},{"v":125000,"d":"125,000.00 kr"},{"v":275000,"d":"275,000.00 kr"},{"$f":"SUM(C25:E25)","v":{"v":550000,"d":"550,000.00 kr"}}]
[null,"Kundförlust",{"v":80000,"d":"80,000.00 kr"},{"v":190000,"d":"190,000.00 kr"},{"v":140000,"d":"140,000.00 kr"},{"$f":"SUM(C26:E26)","v":{"v":410000,"d":"410,000.00 kr"}}]
[null,"Totala övriga kundkostnader",{"$f":"SUM(C24:C26)","v":{"v":335000,"d":"335,000.00 kr"}},{"$f":"SUM(D24:D26)","v":{"v":435000,"d":"435,000.00 kr"}},{"$f":"SUM(E24:E26)","v":{"v":650000,"d":"650,000.00 kr"}},{"$f":"SUM(F24:F26)","v":{"v":1420000,"d":"1,420,000.00 kr"}}]
[null,"Kundlönsamhet per segment",{"$f":"+C20-C27","v":{"v":-35000,"d":"-35,000.00 kr"}},{"$f":"+D20-D27","v":{"v":-135000,"d":"-135,000.00 kr"}},{"$f":"+E20-E27","v":{"v":350000,"d":"350,000.00 kr"}},{"$f":"SUM(C28:E28)","v":{"v":180000,"d":"180,000.00 kr"}}]
[null,"Viktning",{"$f":"MAX(0,MIN(1, C28/$F$28))","v":{"v":0,"d":"0%"}},{"$f":"MAX(0,MIN(1, D28/$F$28))","v":{"v":0,"d":"0%"}},{"$f":"MAX(0,MIN(1, E28/$F$28))","v":{"v":1,"d":"100%"}},{"$f":"SUM(C29:E29)","v":{"v":1,"d":"100%"}}]
[]
["Tabellen Sammanfattande statistik som börjar i cellen till höger uppdateras automatiskt. Fler anvisningar finns i cell A37.","Sammanfattande statistik:","Segmentnamn 1","Segmentnamn 2","Segmentnamn 3","Trend"]
[null,"Genomsnittlig kostnad per ny kund",{"$f":"+C24/C8","v":{"v":52500,"d":"52,500.00 kr"}},{"$f":"+D24/D8","v":{"v":30000,"d":"30,000.00 kr"}},{"$f":"+E24/E8","v":{"v":58750,"d":"58,750.00 kr"}}]
[null,"Genomsnittlig kostnad per förlorad kund",{"$f":"-C26/C9","v":{"v":80000,"d":"80,000.00 kr"}},{"$f":"-D26/D9","v":{"v":95000,"d":"95,000.00 kr"}},{"$f":"-E26/E9","v":{"v":70000,"d":"70,000.00 kr"}}]
[null,"Genomsnittlig marknadsföringskostnad per aktiv kund",{"$f":"+C26/Kundaktivitet[[#Totals],[Segmentnamn 1]]","v":{"v":13333.333333333334,"d":"13,333.33 kr"}},{"$f":"+D25/Kundaktivitet[[#Totals],[Segmentnamn 2]]","v":{"v":12500,"d":"12,500.00 kr"}},{"$f":"+E25/Kundaktivitet[[#Totals],[Segmentnamn 3]]","v":{"v":27500,"d":"27,500.00 kr"}}]
[null,"Genomsnittlig vinst (förlust) per kund",{"$f":"+C29/Kundaktivitet[[#Totals],[Segmentnamn 1]]","v":{"v":0,"d":"0.00 kr"}},{"$f":"+D28/Kundaktivitet[[#Totals],[Segmentnamn 2]]","v":{"v":-13500,"d":"-13,500.00 kr"}},{"$f":"+E28/Kundaktivitet[[#Totals],[Segmentnamn 3]]","v":{"v":35000,"d":"35,000.00 kr"}}]
[]
["Grupperat stående stapeldiagram som visar sammanfattande statistik per kundsegment finns i cellen till höger.","Grupperat stående stapeldiagram som visar sammanfattande statistik per kundsegment finns i den här cellen."]